fUSD/lending_fUSD_20260526
["ID","MTS","AMOUNT","RATE_DAILY","PERIOD"]
[423057298,1779804632000,-217.0,0.00023,2]
[423057299,1779804632000,-166.0,0.00023,2]
[423057321,1779804632000,-315.3,0.00024324,2]
[423057310,1779804632000,-217.0,0.00024,2]
[423057312,1779804632000,-27168.65009354,0.00024,2]
[423057306,1779804632000,-958.36167407,0.00023275,2]
[423057311,1779804632000,-292.0,0.00024,2]
[423057314,1779804632000,-3079.74,0.00024089,2]
[423057313,1779804632000,-203.0,0.00024,2]
[423057315,1779804632000,-642.74,0.00024174,2]
[423057319,1779804632000,-211.63584897,0.00024226,2]
[423057316,1779804632000,-237.95,0.00024174,2]
[423057323,1779804632000,-150.0,0.00024369,2]
[423057318,1779804632000,-7.16415103,0.00024226,2]
[423057292,1779804632000,-500.0,0.00022482,2]
[423057308,1779804632000,-170.9,0.0002377,2]
[423057289,1779804632000,-203.0,0.00022,2]
[423057276,1779804632000,-203.0,0.0002,2]
[423057322,1779804632000,-169.42,0.00024332,2]
[423057272,1779804632000,-154.0,0.0002,2]
[423057269,1779804632000,-300.0,0.00019999,2]
[423057270,1779804632000,-300.0,0.00019999,2]
[423057268,1779804632000,-347.0,0.00019999,2]
[423057267,1779804632000,-170.9,0.00019016,2]
[423057266,1779804632000,-315.3,0.0001841,2]
[423057271,1779804632000,-217.0,0.0002,2]
[423057264,1779804632000,-143.77292929,0.00018249,2]
[423057265,1779804632000,-25.64707071,0.00018249,2]
[423057274,1779804632000,-158.0,0.0002,2]
[423057284,1779804632000,-1865.36488656,0.00021631,2]
[423057296,1779804632000,-151.0,0.000228,2]
[423057273,1779804632000,-152.0,0.0002,2]
[423057275,1779804632000,-292.0,0.0002,2]
[423057278,1779804632000,-217.0,0.00021,2]
[423057281,1779804632000,-292.0,0.00021,2]
[423057283,1779804632000,-170.9,0.00021393,2]
[423057280,1779804632000,-165.0,0.00021,2]
[423057282,1779804632000,-203.0,0.00021,2]
[423057279,1779804632000,-152.0,0.00021,2]
[423057286,1779804632000,-217.0,0.00022,2]
[423057297,1779804632000,-167.67,0.00022922,30]
[423057287,1779804632000,-152.0,0.00022,2]
[423057288,1779804632000,-292.0,0.00022,2]
[423057277,1779804632000,-315.3,0.00020381,2]
[423057317,1779804632000,-645.6,0.00024174,2]
[423057285,1779804632000,-500.0,0.000219,2]
[423057325,1779804632000,-189.51,0.00024658,2]
[423057354,1779804632000,-150.0,0.00027197,2]
[423057355,1779804632000,-1264.5,0.000272,2]
[423057353,1779804632000,-2682.57183977,0.00027111,2]
[423057352,1779804632000,-500.0,0.00026822,2]
[423057359,1779804632000,-182.46,0.00027299,2]
[423057356,1779804632000,-182.46,0.00027297,2]
[423057357,1779804632000,-182.46,0.00027297,2]
[423057361,1779804632000,-182.49,0.00027301,2]
[423057362,1779804632000,-182.46,0.00027301,2]
[423057363,1779804632000,-182.46,0.00027301,2]
[423057369,1779804632000,-2781.82699784,0.00027659,2]
[423057358,1779804632000,-182.46,0.00027299,2]
[423057368,1779804632000,-150.0,0.00027521,2]
[423057372,1779804632000,-1000.0,0.00027827,4]
[423057365,1779804632000,-9555.17,0.00027397,10]
[423057371,1779804632000,-160.6,0.00027817,30]
[423057364,1779804632000,-189.51,0.00027397,2]
[423057366,1779804632000,-503.0,0.00027403,4]
[423057367,1779804632000,-5010.75,0.00027511,10]
[423057370,1779804632000,-173.01,0.00027777,30]
[423057376,1779804632000,-3890.24475115,0.00028083,2]
[423057377,1779804632000,-501.0,0.00028083,2]
[423057375,1779804632000,-4173.6058,0.00028083,2]
[423057320,1779804632000,-5000.0,0.00024311,2]
[423057373,1779804632000,-500.0,0.00027899,2]
[423057351,1779804632000,-503.0,0.00026629,3]
[423057374,1779804632000,-1264.5,0.00028,2]
[423057349,1779804632000,-315.3,0.00026296,2]
[423057360,1779804632000,-182.46,0.00027299,2]
[423057335,1779804632000,-5000.0,0.00025125,2]
[423057328,1779804632000,-229.0,0.00025,2]
[423057326,1779804632000,-1000.0,0.00024658,2]
[423057324,1779804632000,-2236.95670847,0.00024371,2]
[423057334,1779804632000,-5000.0,0.00025125,2]
[423057330,1779804632000,-222.40908794,0.00025,2]
[423057329,1779804632000,-297.0,0.00025,2]
[423057327,1779804632000,-2319.72410669,0.00024919,2]
[423057333,1779804632000,-6853.6276155,0.00025125,2]
[423057332,1779804632000,-503.0,0.00025082,2]
[423057336,1779804632000,-5000.0,0.00025125,2]
[423057331,1779804632000,-624.0,0.00025042,2]
[423057347,1779804632000,-170.9,0.00026146,2]
[423057350,1779804632000,-2586.85809042,0.00026563,2]
[423057341,1779804632000,-1000.0,0.000256,2]
[423057345,1779804632000,-503.0,0.00025856,2]
[423057342,1779804632000,-642.74,0.00025786,2]
[423057337,1779804632000,-5000.0,0.00025125,2]
[423057343,1779804632000,-237.95,0.00025786,2]
[423057340,1779804632000,-200.0,0.00025536,2]
[423057346,1779804632000,-2494.55939288,0.00026015,2]
[423057339,1779804632000,-2405.55389863,0.00025467,2]
[423057338,1779804632000,-500.0,0.00025288,2]
[423057348,1779804632000,-1264.5,0.000262,2]
[423057344,1779804632000,-645.6,0.00025786,2]
[423057409,1779804637000,-7962.64,0.00027397,10]
[423057415,1779804637000,-170.9,0.00028523,2]
[423057411,1779804637000,-503.0,0.00028176,5]
[423057413,1779804637000,-315.3,0.00028267,2]
[423057420,1779804637000,-303.89308898,0.00028723,2]
[423057410,1779804637000,-2417.47694885,0.00028083,2]
[423057416,1779804637000,-169.73,0.00028527,120]
[423057418,1779804637000,-1799.72690074,0.00028699,2]
[423057417,1779804637000,-600.4551,0.00028699,2]
[423057414,1779804637000,-1000.0,0.00028514,5]
[423057412,1779804637000,-2884.75459676,0.00028207,2]
[423057419,1779804637000,-270.07766017,0.00028723,2]
[423057424,1779804638000,-38631.99999999,0.00027727,2]
[423057425,1779804638000,-14707.67259765,0.00027727,2]
[423057423,1779804638000,-524.70855744,0.00028723,2]
[423057422,1779804638000,-2524.30426327,0.00028723,2]
[423057421,1779804638000,-2035.4737168,0.00028723,2]
[423057429,1779804639000,-366.10017489,0.00028723,2]
[423057428,1779804639000,-1276.88480236,0.00027727,2]
[423057436,1779804640000,-167.3,0.00028789,2]
[423057431,1779804640000,-22.64083331,0.00028723,2]
[423057432,1779804640000,-347.99521193,0.00028723,2]
[423057433,1779804640000,-52.96478807,0.00028755,2]
[423057434,1779804640000,-1362.87164236,0.00028755,2]
[423057435,1779804640000,-1575.65408641,0.00028755,2]
[423057437,1779804640000,-738.19,0.0002879,2]
[423057430,1779804640000,-1121.1591667,0.00028723,2]
[423057438,1779804640000,-738.19,0.0002879,2]
[423057440,1779804640000,-45255.30912291,0.000288,2]
[423057443,1779804640000,-320.04378153,0.000288,2]
[423057442,1779804640000,-27151.30883768,0.000288,2]
[423057441,1779804640000,-281.649,0.000288,2]
[423057444,1779804640000,-817.90171655,0.000288,2]
[423057446,1779804640000,-2096.24216892,0.000288,2]
[423057445,1779804640000,-583.51007265,0.000288,2]
[423057447,1779804640000,-3283.89592365,0.000288,2]
[423057439,1779804640000,-738.19,0.0002879,2]
[423057490,1779804643000,-947.86281603,0.000295,51]
[423057482,1779804643000,-1000.0,0.00029151,2]
[423057479,1779804643000,-503.0,0.0002895,6]
[423057478,1779804643000,-150.0,0.00028897,2]
[423057473,1779804643000,-1843.68905089,0.0002879,10]
[423057474,1779804643000,-1445.54555673,0.0002879,10]
[423057475,1779804643000,-3346.30539238,0.0002879,10]
[423057480,1779804643000,-7033.56,0.00029009,2]
[423057476,1779804643000,-162782.13937611,0.000288,2]
[423057481,1779804643000,-1000.0,0.00029151,2]
[423057477,1779804643000,-728.0,0.00028823,10]
[423057484,1779804643000,-1000.0,0.00029151,2]
[423057492,1779804643000,-500.0,0.00029507,2]
[423057491,1779804643000,-947.86281603,0.000295,51]
[423057487,1779804643000,-1000.0,0.000292,6]
[423057483,1779804643000,-1000.0,0.00029151,2]
[423057494,1779804643000,-392.01983782,0.00029572,2]
[423057488,1779804643000,-1500.0,0.000293,7]
[423057489,1779804643000,-160.6,0.00029372,7]
[423057486,1779804643000,-173.01,0.00029166,7]
[423057485,1779804643000,-1000.0,0.00029151,2]
[423057493,1779804643000,-821.5452,0.00029572,2]
[423057496,1779804645000,-2035.29474607,0.000287,2]
[423057501,1779804646000,-391.98206051,0.00029572,2]
[423057498,1779804646000,-62.86895061,0.00029572,10]
[423057497,1779804646000,-464.70525393,0.000287,2]
[423057500,1779804646000,-2445.56960167,0.00029572,2]
[423057499,1779804646000,-749.13104939,0.00029572,10]
[423057502,1779804646000,-151.0,0.00029575,30]
[423057505,1779804646000,-217.0,0.00029575,30]
[423057504,1779804646000,-157.0,0.00029575,30]
[423057506,1779804646000,-154.0,0.00029575,30]
[423057508,1779804646000,-152.0,0.00029575,30]
[423057509,1779804646000,-158.0,0.00029575,30]
[423057507,1779804646000,-151.0,0.00029575,30]
[423057510,1779804646000,-161.0,0.00029575,30]
[423057511,1779804646000,-292.0,0.00029575,30]
[423057515,1779804646000,-391.91723949,0.00029575,2]
[423057512,1779804646000,-203.0,0.00029575,30]
[423057513,1779804646000,-487.0,0.00029575,2]
[423057503,1779804646000,-156.0,0.00029575,30]
[423057521,1779804795000,163.92,0.00027726,120]
[423057522,1779804898000,157.99,0.0002637,120]
[423057532,1779805502000,1645.49,0.00028082,120]
[423057534,1779805512000,11.85,0.00010518,2]
[423057533,1779805512000,150.0,0.00010518,2]
[423057535,1779805530000,163.92,0.00027814,120]
[423057536,1779805598000,-349.01156582,0.00014999,2]
[423057537,1779805684000,300.0,0.00028082,120]
[423057539,1779805748000,-4.78624722,0.00014999,2]
[423057538,1779805748000,-150.0,0.00014549,2]
[423057540,1779805748000,-449.0,0.00014999,2]
[423057541,1779805748000,-51396.21375278,0.00015,2]
[423057542,1779805758000,1219.9,0.00028082,120]
[423057544,1779805772000,-132134.80615624,0.00015,2]
[423057543,1779805772000,-29865.19384376,0.00015,2]
[423057558,1779805831000,-351.34455134,0.00015,2]
[423057562,1779805831000,-6736.19699866,0.0001611,15]
[423057561,1779805831000,-2271.98195886,0.00015807,2]
[423057560,1779805831000,-161.85,0.00015778,2]
[423057559,1779805831000,-1517.64,0.000153,2]
[423057556,1779805831000,-614.57601135,0.00015,2]
[423057557,1779805831000,-38521.69685418,0.00015,2]
[423057602,1779805832000,-687.02043609,0.00019947,2]
[423057596,1779805832000,-687.02043609,0.00019947,2]
[423057606,1779805832000,-500.0,0.00019947,2]
[423057604,1779805832000,-687.02043609,0.00019947,2]
[423057603,1779805832000,-500.0,0.00019947,2]
[423057601,1779805832000,-500.0,0.00019947,2]
[423057598,1779805832000,-687.02043609,0.00019947,2]
[423057599,1779805832000,-500.0,0.00019947,2]
[423057600,1779805832000,-687.02043609,0.00019947,2]
[423057605,1779805832000,-500.0,0.00019947,2]
[423057597,1779805832000,-500.0,0.00019947,2]
[423057608,1779805832000,-500.0,0.00019947,2]
[423057595,1779805832000,-500.0,0.00019947,2]
[423057609,1779805832000,-687.02043609,0.00019947,2]
[423057615,1779805832000,-687.02043609,0.00019947,2]
[423057607,1779805832000,-687.02043609,0.00019947,2]
[423057612,1779805832000,-500.0,0.00019947,2]
[423057616,1779805832000,-500.0,0.00019947,2]
[423057613,1779805832000,-687.02043609,0.00019947,2]
[423057610,1779805832000,-500.0,0.00019947,2]
[423057617,1779805832000,-687.02043609,0.00019947,2]
[423057619,1779805832000,-687.02043609,0.00019947,2]
[423057625,1779805832000,-106.4071547,0.00019947,2]
[423057618,1779805832000,-500.0,0.00019947,2]
[423057621,1779805832000,-687.02043609,0.00019947,2]
[423057623,1779805832000,-687.02043609,0.00019947,2]
[423057620,1779805832000,-500.0,0.00019947,2]
[423057622,1779805832000,-687.02043609,0.00019947,2]
[423057611,1779805832000,-500.0,0.00019947,2]
[423057594,1779805832000,-687.02043609,0.00019947,2]
[423057566,1779805832000,-285.7,0.0001841,2]
[423057593,1779805832000,-500.0,0.00019947,2]
[423057626,1779805832000,-545.069636,0.00019947,2]
[423057563,1779805832000,-200.0,0.0001634,2]
[423057564,1779805832000,-285.7,0.00016438,2]
[423057565,1779805832000,-249.55353456,0.00018,2]
[423057567,1779805832000,-167.44,0.00019763,2]
[423057578,1779805832000,-687.02043609,0.00019947,2]
[423057577,1779805832000,-500.0,0.00019947,2]
[423057572,1779805832000,-322.01590857,0.00019947,2]
[423057571,1779805832000,-687.02043609,0.00019947,2]
[423057570,1779805832000,-500.0,0.00019947,2]
[423057569,1779805832000,-500.0,0.00019947,2]
[423057568,1779805832000,-167.37977558,0.00019947,2]
[423057573,1779805832000,-500.0,0.00019947,2]
[423057574,1779805832000,-500.0,0.00019947,2]
[423057576,1779805832000,-351.6294919,0.00019947,2]
[423057575,1779805832000,-500.0,0.00019947,2]
[423057579,1779805832000,-500.0,0.00019947,2]
[423057580,1779805832000,-500.0,0.00019947,2]
[423057581,1779805832000,-363.66012173,0.00019947,2]
[423057589,1779805832000,-500.0,0.00019947,2]
[423057590,1779805832000,-500.0,0.00019947,2]
[423057591,1779805832000,-687.02043609,0.00019947,2]
[423057583,1779805832000,-500.0,0.00019947,2]
[423057588,1779805832000,-201.86240655,0.00019947,2]
[423057584,1779805832000,-687.02043609,0.00019947,2]
[423057586,1779805832000,-500.0,0.00019947,2]
[423057582,1779805832000,-500.0,0.00019947,2]
[423057585,1779805832000,-500.0,0.00019947,2]
[423057587,1779805832000,-687.02043609,0.00019947,2]
[423057592,1779805832000,-500.0,0.00019947,2]
[423057624,1779805832000,-580.61328139,0.00019947,2]
[423057674,1779805832000,-678.64213808,0.00019947,2]
[423057628,1779805832000,-687.02043609,0.00019947,2]
[423057661,1779805832000,-678.64213808,0.00019947,2]
[423057660,1779805832000,-678.64213808,0.00019947,2]
[423057663,1779805832000,-678.64213808,0.00019947,2]
[423057662,1779805832000,-678.64213808,0.00019947,2]
[423057664,1779805832000,-678.64213808,0.00019947,2]
[423057665,1779805832000,-678.64213808,0.00019947,2]
[423057668,1779805832000,-678.64213808,0.00019947,2]
[423057670,1779805832000,-678.64213808,0.00019947,2]
[423057680,1779805832000,-648.95154455,0.00019947,2]
[423057673,1779805832000,-678.64213808,0.00019947,2]
[423057681,1779805832000,-648.95154455,0.00019947,2]
[423057672,1779805832000,-678.64213808,0.00019947,2]
[423057676,1779805832000,-678.64213808,0.00019947,2]
[423057671,1779805832000,-678.64213808,0.00019947,2]
[423057669,1779805832000,-678.64213808,0.00019947,2]
[423057675,1779805832000,-678.64213808,0.00019947,2]
[423057679,1779805832000,-648.95154455,0.00019947,2]
[423057678,1779805832000,-678.64213808,0.00019947,2]
[423057677,1779805832000,-678.64213808,0.00019947,2]
[423057682,1779805832000,-648.95154455,0.00019947,2]
[423057684,1779805832000,-648.95154455,0.00019947,2]
[423057683,1779805832000,-648.95154455,0.00019947,2]
[423057686,1779805832000,-490.78891763,0.00019947,2]
[423057688,1779805832000,-285.23695421,0.00019947,2]
[423057627,1779805832000,-141.95080009,0.00019947,2]
[423057687,1779805832000,-158.16262692,0.00019947,2]
[423057689,1779805832000,-363.71459034,0.00019947,2]
[423057690,1779805832000,-648.95154455,0.00019947,2]
[423057691,1779805832000,-95.95143897,0.00019947,2]
[423057659,1779805832000,-678.64213808,0.00019947,2]
[423057667,1779805832000,-678.64213808,0.00019947,2]
[423057685,1779805832000,-648.95154455,0.00019947,2]
[423057655,1779805832000,-678.64213808,0.00019947,2]
[423057629,1779805832000,-687.02043609,0.00019947,2]
[423057630,1779805832000,-687.02043609,0.00019947,2]
[423057631,1779805832000,-687.02043609,0.00019947,2]
[423057636,1779805832000,-687.02043609,0.00019947,2]
[423057634,1779805832000,-687.02043609,0.00019947,2]
[423057633,1779805832000,-687.02043609,0.00019947,2]
[423057635,1779805832000,-687.02043609,0.00019947,2]
[423057632,1779805832000,-687.02043609,0.00019947,2]
[423057638,1779805832000,-687.02043609,0.00019947,2]
[423057637,1779805832000,-687.02043609,0.00019947,2]
[423057639,1779805832000,-687.02043609,0.00019947,2]
[423057640,1779805832000,-687.02043609,0.00019947,2]
[423057641,1779805832000,-687.02043609,0.00019947,2]
[423057658,1779805832000,-678.64213808,0.00019947,2]
[423057642,1779805832000,-687.02043609,0.00019947,2]
[423057650,1779805832000,-687.02043609,0.00019947,2]
[423057666,1779805832000,-678.64213808,0.00019947,2]
[423057657,1779805832000,-678.64213808,0.00019947,2]
[423057656,1779805832000,-678.64213808,0.00019947,2]
[423057654,1779805832000,-687.02043609,0.00019947,2]
[423057643,1779805832000,-687.02043609,0.00019947,2]
[423057649,1779805832000,-687.02043609,0.00019947,2]
[423057647,1779805832000,-687.02043609,0.00019947,2]
[423057648,1779805832000,-687.02043609,0.00019947,2]
[423057644,1779805832000,-687.02043609,0.00019947,2]
[423057645,1779805832000,-687.02043609,0.00019947,2]
[423057653,1779805832000,-687.02043609,0.00019947,2]
[423057652,1779805832000,-687.02043609,0.00019947,2]
[423057651,1779805832000,-687.02043609,0.00019947,2]
[423057646,1779805832000,-687.02043609,0.00019947,2]
[423057693,1779805833000,-648.95154455,0.00019947,2]
[423057694,1779805833000,-648.95154455,0.00019947,2]
[423057692,1779805833000,-553.00010558,0.00019947,2]
[423057695,1779805833000,-648.95154455,0.00019947,2]
[423057700,1779805833000,-760.07377617,0.0001995,15]
[423057697,1779805833000,-648.95154454,0.00019947,2]
[423057699,1779805833000,-1501.7996117,0.0001995,15]
[423057698,1779805833000,-73.68915723,0.0001995,15]
[423057696,1779805833000,-648.95154455,0.00019947,2]
[423057730,1779805838000,-163.92,0.0002086,2]
[423057727,1779805838000,-167.44,0.00020803,2]
[423057725,1779805838000,-150.0,0.0002058,2]
[423057723,1779805838000,-1580.77,0.00020548,2]
[423057732,1779805838000,-151.0,0.00021,2]
[423057742,1779805838000,-161.85,0.00021037,2]
[423057734,1779805838000,-215.0,0.00021,2]
[423057731,1779805838000,-500.0,0.00020893,2]
[423057736,1779805838000,-165.0,0.00021,2]
[423057743,1779805838000,-167.44,0.00021324,2]
[423057737,1779805838000,-210.0,0.00021,2]
[423057740,1779805838000,-236.0,0.00021,2]
[423057739,1779805838000,-318.0,0.00021,2]
[423057738,1779805838000,-196.0,0.00021,2]
[423057741,1779805838000,-292.95,0.00021011,2]
[423057744,1779805838000,-12835.055971,0.00021679,2]
[423057747,1779805838000,-151.0,0.00021999,2]
[423057748,1779805838000,-151.0,0.00021999,2]
[423057746,1779805838000,-500.0,0.000219,2]
[423057724,1779805838000,-150.0,0.0002058,2]
[423057735,1779805838000,-166.0,0.00021,2]
[423057722,1779805838000,-285.7,0.00020381,2]
[423057705,1779805838000,-151.0,0.0002,2]
[423057728,1779805838000,-158.0,0.00020814,2]
[423057749,1779805838000,-151.0,0.00021999,2]
[423057704,1779805838000,-13997.80856976,0.0001995,15]
[423057703,1779805838000,-1945.92640347,0.000199,2]
[423057706,1779805838000,-151.0,0.0002,2]
[423057707,1779805838000,-215.0,0.0002,2]
[423057709,1779805838000,-165.0,0.0002,2]
[423057708,1779805838000,-166.0,0.0002,2]
[423057710,1779805838000,-158.0,0.0002,2]
[423057712,1779805838000,-196.0,0.0002,2]
[423057726,1779805838000,-150.0,0.0002058,2]
[423057711,1779805838000,-210.0,0.0002,2]
[423057714,1779805838000,-236.0,0.0002,2]
[423057713,1779805838000,-318.0,0.0002,2]
[423057715,1779805838000,-1569.76502677,0.0002,2]
[423057717,1779805838000,-2731.74791748,0.0002,2]
[423057720,1779805838000,-250.0,0.00020095,2]
[423057718,1779805838000,-2320.04222926,0.0002,2]
[423057719,1779805838000,-1163.56769754,0.0002,2]
[423057729,1779805838000,-162.68,0.00020834,2]
[423057721,1779805838000,-167.44,0.00020283,2]
[423057716,1779805838000,-656.50733575,0.0002,2]
[423057750,1779805838000,-151.0,0.00021999,2]
[423057733,1779805838000,-151.0,0.00021,2]
[423057751,1779805838000,-151.0,0.00021999,2]
[423057785,1779805838000,-165.0,0.00022,2]
[423057781,1779805838000,-215.0,0.00022,2]
[423057783,1779805838000,-166.0,0.00022,2]
[423057796,1779805838000,-1945.92640343,0.0002203,2]
[423057799,1779805838000,-285.7,0.00022353,2]
[423057798,1779805838000,-308.24,0.000222,2]
[423057801,1779805838000,-171.48,0.0002239,2]
[423057812,1779805838000,-151.0,0.00023,2]
[423057814,1779805838000,-151.0,0.00023,2]
[423057779,1779805838000,-151.0,0.00022,2]
[423057808,1779805838000,-1071.7,0.00022466,2]
[423057820,1779805838000,-165.0,0.00023,2]
[423057818,1779805838000,-166.0,0.00023,2]
[423057810,1779805838000,-1865.36488656,0.00022547,2]
[423057816,1779805838000,-215.0,0.00023,2]
[423057822,1779805838000,-210.0,0.00023,2]
[423057824,1779805838000,-196.0,0.00023,2]
[423057826,1779805838000,-318.0,0.00023,2]
[423057828,1779805838000,-236.0,0.00023,2]
[423057745,1779805838000,-167.44,0.00021844,2]
[423057806,1779805838000,-802.5,0.00022466,2]
[423057777,1779805838000,-151.0,0.00022,2]
[423057804,1779805838000,-269.41,0.00022395,2]
[423057793,1779805838000,-236.0,0.00022,2]
[423057775,1779805838000,-285.0,0.00022,10]
[423057753,1779805838000,-151.0,0.00021999,2]
[423057754,1779805838000,-151.0,0.00021999,2]
[423057755,1779805838000,-151.0,0.00021999,2]
[423057756,1779805838000,-151.0,0.00021999,2]
[423057758,1779805838000,-151.0,0.00021999,2]
[423057759,1779805838000,-151.0,0.00021999,2]
[423057767,1779805838000,-151.0,0.00021999,2]
[423057765,1779805838000,-151.0,0.00021999,2]
[423057757,1779805838000,-151.0,0.00021999,2]
[423057830,1779805838000,-1934.38338736,0.00023095,2]
[423057752,1779805838000,-1798.80895522,0.00021999,2]
[423057761,1779805838000,-151.0,0.00021999,2]
[423057760,1779805838000,-151.0,0.00021999,2]
[423057762,1779805838000,-151.0,0.00021999,2]
[423057769,1779805838000,-151.0,0.00021999,2]
[423057771,1779805838000,-151.0,0.00021999,2]
[423057773,1779805838000,-200.0,0.00022,10]
[423057789,1779805838000,-196.0,0.00022,2]
[423057787,1779805838000,-210.0,0.00022,2]
[423057791,1779805838000,-318.0,0.00022,2]
[423057763,1779805838000,-151.0,0.00021999,2]
[423057875,1779805839000,-182.0,0.00025,2]
[423057870,1779805839000,-176.89,0.00024658,2]
[423057871,1779805839000,-1000.0,0.00024658,2]
[423057868,1779805839000,-163.92,0.00024337,2]
[423057876,1779805839000,-169.0,0.00025,2]
[423057867,1779805839000,-285.7,0.00024324,2]
[423057864,1779805839000,-2080.17592889,0.00024191,2]
[423057866,1779805839000,-150.0,0.00024211,2]
[423057873,1779805839000,-165.80029041,0.00025,2]
[423057869,1779805839000,-171.48,0.00024629,2]
[423057874,1779805839000,-227.88716274,0.00025,2]
[423057884,1779805839000,-6921.18545259,0.00025149,7]
[423057877,1779805839000,-211.0,0.00025,2]
[423057886,1779805839000,-2236.95670847,0.00025287,2]
[423057881,1779805839000,-313.60822115,0.00025,2]
[423057879,1779805839000,-336.0,0.00025,2]
[423057882,1779805839000,-686.39177885,0.00025,2]
[423057880,1779805839000,-249.0,0.00025,2]
[423057888,1779805839000,-1000.0,0.000256,2]
[423057883,1779805839000,-174.95852187,0.00025,2]
[423057878,1779805839000,-209.0,0.00025,2]
[423057872,1779805839000,-2157.14243826,0.00024739,2]
[423057861,1779805839000,-1255.69318828,0.00024,2]
[423057831,1779805839000,-246.5002643,0.000232,2]
[423057860,1779805839000,-3600.0,0.00024,2]
[423057885,1779805839000,-3090.52454741,0.00025149,7]
[423057833,1779805839000,-171.48,0.00023509,2]
[423057837,1779805839000,-2005.9555727,0.00023643,2]
[423057849,1779805839000,-9313.1293,0.000239,2]
[423057839,1779805839000,-150.0,0.00023668,2]
[423057844,1779805839000,-150.0,0.00023702,2]
[423057841,1779805839000,-500.0,0.00023699,2]
[423057846,1779805839000,-5000.0,0.00023817,2]
[423057843,1779805839000,-516.14,0.00023702,2]
[423057835,1779805839000,-224.0,0.00023616,2]
[423057863,1779805839000,-588.19,0.00024174,2]
[423057848,1779805839000,-810.51,0.00023817,2]
[423057852,1779805839000,-215.0,0.00024,2]
[423057853,1779805839000,-166.0,0.00024,2]
[423057851,1779805839000,-166.0,0.00024,2]
[423057854,1779805839000,-165.0,0.00024,2]
[423057862,1779805839000,-599.89,0.00024174,2]
[423057857,1779805839000,-1038.47693357,0.00024,2]
[423057858,1779805839000,-318.0,0.00024,2]
[423057855,1779805839000,-210.0,0.00024,2]
[423057859,1779805839000,-236.0,0.00024,2]
[423057856,1779805839000,-196.0,0.00024,2]
[423057850,1779805839000,-151.0,0.00024,2]
[423057887,1779805839000,-500.0,0.00025425,2]
[423057865,1779805839000,-3757.82442006,0.0002421,2]
[423057890,1779805839000,-588.19,0.00025786,2]
[423057917,1779805839000,-295.27,0.00028072,2]
[423057927,1779805839000,-487.0,0.00028451,2]
[423057916,1779805839000,-2682.57183977,0.00028027,2]
[423057920,1779805839000,-151.0,0.00028096,3]
[423057919,1779805839000,-109881.25,0.00028082,7]
[423057918,1779805839000,-295.27,0.00028072,2]
[423057926,1779805839000,-487.0,0.00028451,2]
[423057922,1779805839000,-78.09884445,0.00028203,2]
[423057924,1779805839000,-243.64,0.00028253,7]
[423057925,1779805839000,-285.7,0.00028267,2]
[423057907,1779805839000,-208.59,0.00027649,30]
[423057923,1779805839000,-2313.19115555,0.00028203,2]
[423057931,1779805839000,-1000.0,0.00028513,5]
[423057932,1779805839000,-894.30218725,0.00028526,120]
[423057933,1779805839000,-105.69781275,0.00028526,120]
[423057930,1779805839000,-1000.0,0.000285,2]
[423057934,1779805839000,-312.03666516,0.00028575,2]